Cogmind - Beta 15 @@@ ROGUE MODE // 2025.05.31 @ 22:42:43 Player: Elias Result: Destroyed by S-10 Pest with Light Assault Rifle Performance ------------- Evolutions (0) 0 Regions Visited (2) 400 Robots Destroyed (5) 25 Value Destroyed (200) 200 Prototype IDs (0) 0 Alien Tech Used (0) 0 Bonus (0) 0 TOTAL SCORE: 625 Bonus ------- None Cogmind --------- Core Integrity 0/250 Matter 280/300 Energy 100/100 System Corruption 0% Temperature Cool (0) Movement Core (150) Ox2 Location -10/Subcaves Parts ------- > --- POWER (1) -------- (None) > --- PROPULSION (2) --- (None) > --- UTILITY (2) ------ Small Storage Unit > --- WEAPON (2) ------- Medium Laser > --- INVENTORY (8) ---- Light Treads Light Treads Scrap Shield Datajack Peak State ------------ > --- POWER ------------ Ion Engine > --- PROPULSION ------- Aluminum Leg Aluminum Leg > --- UTILITY ---------- Small Storage Unit > --- WEAPON ----------- Light Assault Rifle Battle Rifle > --- INVENTORY -------- Light Treads Light Treads Scrap Shield Medium Laser Light Assault Rifle Grenade Launcher Datajack [Rating: 8] Favorites ----------- Power Ion Engine Engine Ion Engine Propulsion Aluminum Leg Leg Aluminum Leg Utility Small Storage Unit Storage Small Storage Unit Weapon Light Assault Rifle Energy Gun Medium Laser Ballistic Gun Light Assault Rifle Launcher Grenade Launcher Build | -11 -10 -10 ------- Run | Yrd Mat Sub Slots Evolved . | . . . Power . | . . . Propulsion . | . . . Utility . | . . . Weapon . | . . . Parts Attached 9 | 5 1 3 Power 1 | 1 . . Engine 1 | 1 . . Core . | . . . Reactor . | . . . Propulsion 2 | 1 1 . Treads . | . . . Leg 2 | 1 1 . Wheel . | . . . Hover . | . . . Flight . | . . . Utility 1 | 1 . . Device . | . . . Storage 1 | 1 . . Processor . | . . . Hackware . | . . . Protection . | . . . Artifact . | . . . Weapon 5 | 2 . 3 Energy Gun 1 | . . 1 Energy Cannon . | . . . Ballistic Gun 3 | 2 . 1 Ballistic Cannon . | . . . Launcher 1 | . . 1 Special Weapon . | . . . Impact Weapon . | . . . Slashing Weapon . | . . . Piercing Weapon . | . . . Special Melee Weapon . | . . . Unidentified Prototypes . | . . . Parts Lost 7 | . . 7 Power 1 | . . 1 Propulsion 2 | . . 2 Utility . | . . . Weapon 4 | . . 4 Highest Loss Streak 5 | . . 5 To Critical Strikes . | . . . Average Backups 5 | 2 4 6 Power . | . . . Propulsion 2 | 1 3 2 Utility . | . . . Weapon 2 | . 1 2 Tool/Special . | . . . Unused Backups 4 | . . 4 Power . | . . . Propulsion 2 | . . 2 Utility 1 | . . 1 Weapon . | . . . Tool/Special 1 | . . 1 Average Slot Usage (%) 79 | . 71 80 Engine 12 | . 14 12 Leg 24 | . 14 26 Storage 14 | . 14 14 Ballistic Gun 24 | . 28 24 Launcher 1 | . . 1 Peak Build Rating 8 | 5 6 8 Average Rating 6 | 4 5 6 On Entrance 3 | . 5 6 Naked Turns . | . . . Heaviest Build 15 | 12 12 15 Greatest Support 20 | 10 20 20 Greatest Overweight (x) 1 | 1 1 . Average Overweight (x) . | . . . Largest Inventory Capacity 8 | 8 8 8 Average Capacity 7 | 7 8 8 Most Carried 8 | 5 6 8 Average Carried 5 | 2 5 6 Final Capacity 8 | 8 8 8 Final Carried 5 | 4 5 5 Class Distribution -------------------- 100% | Mutant Dominant Class ---------------- Mutant | -10/Materials Mutant | -10/Subcaves Resources | -11 -10 -10 ----------- Run | Yrd Mat Sub Matter Collected 397 | 225 . 172 Remotely . | . . . Salvage Created 206 | . . 206 Parts 14 | . . 14 Haulers Intercepted . | . . . Recyclers Shooed . | . . . Parts Field Recycled . | . . . Retrieved Matter . | . . . Parts Self-Destructed 30 | . . 30 Prevented . | . . . Kills | -11 -10 -10 ------- Run | Yrd Mat Sub Combat Hostiles Destroyed 5 | . . 5 Guns 5 | . . 5 Classes Destroyed 1 | . . 1 Subdweller 5 | . . 5 Best Kill Streak 2 | . . 2 Combat Bots Only 2 | . . 2 Max Kills in Single Turn 1 | . . 1 Gunslinging . | . . . Exploded . | . . . Melee . | . . . Uniques/NPCs Destroyed . | . . . Combat | -11 -10 -10 -------- Run | Yrd Mat Sub Hostile Shots Fired 58 | . . 58 Missed 18 | . . 18 Hits 40 | . . 40 Projectile 40 | . . 40 Critical Strikes 2 | . . 2 Damage Taken 975 | . . 975 Core 255 | . . 255 Absorbed by Shields . | . . . Core Remaining (%) 100 | 100 . . Volleys Fired 41 | . . 41 Largest 2 | . . 2 Hottest 50 | . . 50 Shots Fired 62 | . . 62 Gun 58 | . . 58 Cannon . | . . . Launcher 4 | . . 4 Special . | . . . Kinetic 52 | . . 52 Thermal 6 | . . 6 Explosive 4 | . . 4 Electromagnetic . | . . . Robot Hit Streak 17 | . . 17 Robot Miss Streak 2 | . . 2 Penetration Max . | . . . Secondary Targets . | . . . Shots Hit Robots 42 | . . 42 Core Hits 18 | . . 18 Critical Kills . | . . . Critical Parts Destroyed . | . . . Critical Strikes . | . . . Melee Attacks . | . . . Impact . | . . . Slashing . | . . . Piercing . | . . . Sneak Attacks . | . . . Combat Hostiles . | . . . Follow-up Attacks . | . . . Damage Inflicted 482 | . . 482 Guns 427 | . . 427 Cannons . | . . . Explosions 55 | . . 55 Melee . | . . . Ramming . | . . . Kinetic 352 | . . 352 Thermal 75 | . . 75 Explosive 55 | . . 55 Electromagnetic . | . . . Impact . | . . . Slashing . | . . . Piercing . | . . . Highest Corruption . | . . . Average Corruption . | . . . Corruption Purged . | . . . Corruption Blocked . | . . . Overload Shots . | . . . Overflow Damage 7 | . . 7 Projectiles . | . . . Explosions 7 | . . 7 Melee . | . . . Knockbacks . | . . . Impact . | . . . Kinetic . | . . . Secondary . | . . . Self-Inflicted Damage 50 | . . 50 Shots 2 | . . 2 Rammed . | . . . Targets Rammed . | . . . Kicked . | . . . Crushed . | . . . Highest Temperature 271 | . . 271 Average Temperature 154 | . . 154 Received Heat Transfer 427 | . . 427 Siege Activations . | . . . Martial Activations . | . . . Shielding Activations . | . . . Robots Disrupted . | . . . Combat Hostiles . | . . . Robots Corrupted . | . . . Combat Hostiles . | . . . Parts Fried . | . . . Impact Corruptions . | . . . Robots Melted . | . . . Combat Hostiles . | . . . Parts Melted . | . . . Heat Transferred 222 | . . 222 Parts Sabotaged . | . . . Parts Stolen . | . . . Parts Stripped . | . . . Power Chain Reactions . | . . . Alert | -11 -10 -10 ------- Run | Yrd Mat Sub Maximum Alert Level . | . . . Low Security (%) 100 | 100 100 . Level 1 . | . . . Level 2 . | . . . Level 3 . | . . . Level 4 . | . . . Level 5 . | . . . High Security . | . . . Max Security . | . . . Peak Influence 8 | . 8 . Initial . | . . . Average . | . . . Influence Increases 53 | . 8 45 Successful Hack 8 | . 8 . Lose Combat Pursuer 45 | . . 45 Influence Decreases 34 | . 8 26 Time Decay 14 | . 8 6 Lost Part 20 | . . 20 Squads Dispatched . | . . . Investigation . | . . . Extermination . | . . . Reinforcement . | . . . Assault . | . . . Garrison . | . . . Intercept . | . . . Searches Triggered . | . . . Construction Impeded . | . . . Haulers Reinforced . | . . . Active Scanning Responses . | . . . Cargo Convoy Interrupts . | . . . Stealth | -11 -10 -10 --------- Run | Yrd Mat Sub Distress Signals . | . . . Communications Jammed . | . . . Distress Signals . | . . . Times Spotted 8 | . . 8 Peak Tracking Total 2 | . . 2 Tactical Retreats 1 | . . 1 Traps | -11 -10 -10 ------- Run | Yrd Mat Sub Traps Triggered 2 | . . 2 Indirectly . | . . . Trap Hack Attempts . | . . . Triggered . | . . . Disarmed . | . . . Reprogrammed . | . . . Reused . | . . . Traps Extracted . | . . . Installed . | . . . Triggered . | . . . Machines | -11 -10 -10 ---------- Run | Yrd Mat Sub Machines Disabled . | . . . Max in Single Turn . | . . . Machines Repaired . | . . . Machines Dismantled . | . . . Machines Sabotaged . | . . . Overloaded Fab Kills . | . . . Hacking | -11 -10 -10 --------- Run | Yrd Mat Sub Machines Accessed 1 | . 1 . Terminals 1 | . 1 . Fabricators . | . . . Repair Stations . | . . . Recycling Units . | . . . Scanalyzers . | . . . Garrison Access . | . . . Total Hacks 1 | . 1 . Successful 1 | . 1 . Failed . | . . . Catastrophic . | . . . Database Lockouts . | . . . Manual . | . . . Terminals 1 | . 1 . Fabricators . | . . . Repair Stations . | . . . Recycling Units . | . . . Scanalyzers . | . . . Garrison Access . | . . . Terminal Hacks 1 | . 1 . Level Access Points 1 | . 1 . Fabricator Hacks . | . . . Repair Station Hacks . | . . . Recycling Unit Hacks . | . . . Scanalyzer . | . . . Garrison Access Hacks . | . . . Unauthorized Hacks . | . . . Terminals . | . . . Fabricators . | . . . Repair Stations . | . . . Recycling Units . | . . . Scanalyzers . | . . . Garrison Access . | . . . Data Cores Recovered . | . . . Used . | . . . Hacking Detections 1 | . 1 . Full Trace Events . | . . . Feedback Events . | . . . Feedback Blocked . | . . . Robot Schematics Acquired . | . . . Robots Built . | . . . Authchips . | . . . Time . | . . . Total Robot Build Rating . | . . . Part Schematics Acquired . | . . . Parts Built . | . . . Authchips . | . . . Time . | . . . Total Part Build Rating . | . . . Parts Repaired . | . . . Time . | . . . Parts Recycled . | . . . Recycled Matter . | . . . Retrieved Matter . | . . . Retrieved Components . | . . . Parts Scanalyzed . | . . . Part Schematics Acquired . | . . . Parts Damaged . | . . . Bothacking | -11 -10 -10 ------------ Run | Yrd Mat Sub Used RIF Installer . | . . . Robots Hacked . | . . . Non-combat . | . . . Combat . | . . . Robot Hacks Applied . | . . . Relay Couplers Released . | . . . Fabnet Peak Effective % . | . . . Robots Rewired . | . . . Allies Hacked . | . . . Hacks Repelled . | . . . Allies | -11 -10 -10 -------- Run | Yrd Mat Sub Total Allies . | . . . Largest Group . | . . . Highest-Rated Group . | . . . Highest-Rated Ally . | . . . Total Orders . | . . . Ally Attacks . | . . . Total Damage . | . . . Kills . | . . . Allies Corrupted . | . . . Allies Melted . | . . . Intel | -11 -10 -10 ------- Run | Yrd Mat Sub Active Infowar (turns) . | . . . Robot Analysis Total . | . . . Derelict Logs Recovered 2 | . . 2 Drone Launches . | . . . Drone Recoveries . | . . . Exploration | -11 -10 -10 ------------- Run | Yrd Mat Sub Turns Passed 1052 | 94 128 830 Spaces Moved 684 | 53 52 579 Core 14 | 14 . . Treads . | . . . Legs 670 | 39 52 579 Wheels . | . . . Hover . | . . . Flight . | . . . Fastest Speed 50 | 50 120 120 Average Speed 127 | 153 188 120 Slowest Speed 190 | 190 190 120 Overloaded Moves . | . . . Propulsion Burnouts . | . . . Robots Hopped . | . . . Potential Cave-ins . | . . . Cave-ins Triggered . | . . . Exploration Rate (%) 14 | 5 15 23 Regions Visited 2 Branch Regions 1 Pre-discovered Areas 2 | . . 2 Known Exits Taken . | . . . Unknown Exits Taken 2 | 1 1 . Scrap Searched . | . . . Spaces Dug . | . . . Terrain Destroyed 25 | . . 25 Melee . | . . . Projectile . | . . . AOE 25 | . . 25 Terrain Rammed . | . . . Walls Destroyed . | . . . Machines Disabled . | . . . Actions | -11 -10 -10 --------- Run | Yrd Mat Sub Total 805 | 66 82 657 Wait 57 | . 28 29 Move 682 | 52 51 579 Hop . | . . . Pick Up 13 | 9 2 2 Fast Attach . | . . . Attach 9 | 5 1 3 Detach . | . . . Swap 3 | . . 3 Drop . | . . . Fire 41 | . . 41 Melee . | . . . Ram . | . . . Kick . | . . . Crush . | . . . Escape Stasis . | . . . Rewire . | . . . Trap . | . . . Miscellaneous . | . . . Route ------- -11/Scrapyard -10/Materials (discovered 4 exits: Mat x3 / [*Sub]) -10/Subcaves History --------- Turn | Location | Event 6 | -11/Scrapyard | Discovered new exit (range 16) 95 | -11/Scrapyard | Entered Materials 188 | -10/Materials | Discovered new exit (range 6) 202 | -10/Materials | Identified exit to Materials 223 | -10/Materials | Entered Subcaves 224 | -10/Subcaves | Approached by a straggling Scientist 232 | -10/Subcaves | Learned location of Mines (-9) 251 | -10/Subcaves | Shifting Twisted Machinery released Battle Rifle 300 | -10/Subcaves | Build established: Mutant 825 | -10/Subcaves | Shifting Twisted Machinery released Scrap Shield 976 | -10/Subcaves | Core integrity fell below 50% 1004 | -10/Subcaves | Core integrity fell below 20% 1030 | -10/Subcaves | Lost 5 parts (1p1n3w) 1043 | -10/Subcaves | Ambushed by Subdweller buried in earth 1053 | -10/Subcaves | Destroyed by S-10 Pest with Light Assault Rifle Last Messages --------------- 00860_ Critical hit (Meltdown: +280). 00860_ 0S-CX4(R) destroyed. 00870_ Acquired 57 matter. 00971_ Battle Rifle destroyed. 00977_ Ion Engine destroyed. 00983_ Lgt. Assault Rifle destroyed. 00985_ Aluminum Leg destroyed. 00985_ L2-V8F(R) destroyed. 00996_ Acquired 24 matter. 00996_ FG-1OQ(R) affixes Scrap Shield Fragment to Scrap Shield. 00998_ Acquired 1 matter. 00999_ Lgt. Assault Rifle destroyed. 01001_ Acquired 10 matter. 01003_ FG-1OQ(R) destroyed. 01043_ Grenade Launcher destroyed. 01043_ Destroyed Grenade Launcher. 01044_ SL-HPC(R): "ARGHSUB!" 01044_ S-10 Pest destroyed. 01045_ Aluminum Leg destroyed. 01050_ Flight Unit fries itself beyond repair. Map ----- +----------------------------------------------------+ | ### & """ #?????????????????????????? | | ##=[ ## ##"# # #?????????????????????????? | | ######### "#?????????????????????????? | | ##???????# ##?????????????????????????? | | # #####????????#######??????????????????????????? | | ##?????????????????????????????????????????????? | | # #??????????????????????????????????????????????? | | #??????????????????????????????????????????????? | | ## #?????????????????????????????????????????????? | | #?##?????????????????????????????????????????????? | | ##???????????????????????????????????????????????? | | ##??????????????????????????????????????????????? | | ##?????????????????????????????????????????????? | | ##????????????????????????????????????????????? | | #????????????????????????????????????????????? | | ## #????????????????????????????????????????????? | | ## #??????????######????????????????????????????? | | ## #??????????#""" "???????????????????????????? | | #???????????? ##?????????????????????????? | | ##???????????? s #????????????????????????? | | #????????????? "????????????????????????? | | #####?????????? [ ##??????????????????????? | | ## #???????????*% ##?????????????????????? | | ### #????????????# #?????????????????????? | | ??## #????????????# #?????????????????????? | | ???#######????????????# @R#?????????????????????? | | #???????????????##?#### #???????????????????? | | ## ##??#??##?#### ## ### # #??????????????????? | | #?? ## ### # " ### # ? ?????????????????? | | ##??# " "" ## ###? #????????????????? | | ####???# ???#"" #????? ???????????????? | | ???????# ##??## ##?????? ?????????????? | | ?####### #???### ### ###???????? ????????????? | | ?# ## ####### ### #???????????? ???????????? | | ?# ## # ## # # # ????????????? ???????????? | | ??# ## ##????????????????????????? | | ### ### # ######?????????????????????????? | | ##! # #?######??????????????????????????????? | | %%& ### ###?????????????????????????????????????? | | *&& #?###???????????????????????????????????????? | | ! ##?##???????????????????????????????????????? | | ## #???????????????????????????????????????? | | #???????????????????????????????????????? | | ##??????????????????????????????????????? | | #??????????????????????????????????????? | | ##??????????????????????????????????????? | | #???????????????????????????????????????? | | ##??????????????????????????????????????? | | #??????????????????????????????????????? | | ##??????????????????????????????????????? | +----------------------------------------------------+ Best States ------------- Heat Dissipation 25 Energy Generation 10 Energy Capacity 250 Matter Stores 300 Matter Capacity 300 Sight Range 16 Terrain Scan Density 10 Evasion (%) 55 Item Schematics ----------------- None Robot Schematics ------------------ None Fabricated ------------ Nothing Repaired ---------- Nothing Alien Tech Used ----------------- None Achievements -------------- None Challenges ------------ None Game ------ Seed HellfireSalvageCleaver Manual? 0 Play Time 00:05:03 Cumulative 38.3 hours Start 2025.05.31 @ 22:37:10 End 2025.05.31 @ 22:42:43 Sessions 1 Manual Loads 0 Difficulty Rogue Special Mode None Game No. 60 Rogue 60 Adventurer 0 Explorer 0 Win Type - Total 0 Types 0/0/0/0/0/0/0/0/0/0 Lore% 32 Gallery% 35 Achievement% 29 Wizard Run 0 Options --------- Layout 0 ASCII 0 Keyboard 0 Movement Mouse Keybinds 0 Fullscreen 1 Font 18/SmallcapsGlow Map View 76x50 Zoom Use 0% Tactical HUD 1 Map Filters NONE Filters NONE Steam 1 RUN: 431f115f-abc5-4580-b58a-b15863331952